bitfinex/quotes_SOLUSD_20240624
["timestamp","ask_amount","ask_price","bid_price","bid_amount"]
[1719232495629,652.047805,128.53,128.49,19.4566]
[1719232495823,652.047805,128.53,128.49,27.2388]
[1719232496131,671.498605,128.53,128.46,19.4598]
[1719232496342,671.498605,128.53,128.42,256.2]
[1719232496343,7.7826,128.5,128.45,7.7848]
[1719232496514,7.7827,128.49,128.45,7.7848]
[1719232496713,7.7822,128.5,128.45,7.7848]
[1719232496913,652.047805,128.53,128.46,19.4611]
[1719232497145,7.7812,128.52,128.47,7.7837]
[1719232497635,653.38431726,128.53,128.46,19.4611]
[1719232497636,7.7825,128.5,128.46,19.4611]
[1719232498947,7.7825,128.5,128.45,7.7847]
[1719232499435,7.7825,128.5,128.46,7.7844]
[1719232499648,7.7825,128.5,128.45,7.7848]
[1719232499825,7.7814,128.52,128.46,19.461]
[1719232500015,7.7816,128.51,128.47,7.7839]
[1719232500618,7.7809,128.52,128.47,7.7839]
[1719232500819,7.7809,128.52,128.47,7.7836]
[1719232501044,653.38431726,128.53,128.46,19.461]
[1719232501045,7.7825,128.5,128.46,19.461]
[1719232501427,653.38431726,128.53,128.45,7.7848]
[1719232501428,7.7827,128.49,128.45,7.7848]
[1719232501821,7.7827,128.49,128.44,27.2497]
[1719232502022,7.7827,128.49,128.45,7.785]
[1719232502540,7.7823,128.5,128.45,7.785]
[1719232502729,7.7823,128.5,128.46,7.7842]
[1719232502917,7.7817,128.51,128.46,7.7842]
[1719232503560,7.7817,128.51,128.39,238.9429]
[1719232503561,15.0506,128.5,128.39,38.9429]
[1719232503739,7.7845,128.46,128.41,7.7872]
[1719232503939,7.7852,128.45,128.41,19.4688]
[1719232504158,7.7855,128.45,128.4,7.7878]
[1719232504342,7.7845,128.46,128.42,7.7867]
[1719232504836,7.7834,128.48,128.43,28.43344355]
[1719232505038,7.7839,128.47,128.43,27.2503]
[1719232505241,7.7834,128.48,128.44,7.7857]
[1719232505457,7.7834,128.48,128.43,27.2504]
[1719232505833,60.0506,128.5,128.43,19.4643]
[1719232506035,7.7832,128.49,128.45,19.4626]
[1719232506342,15.0506,128.5,128.43,7.786]
[1719232507252,34.5059,128.5,128.42,27.2526]
[1719232507448,7.7848,128.46,128.41,7.7874]
[1719232507655,34.5059,128.5,128.39,38.9429]
[1719232507656,7.7853,128.45,128.4,19.4689]
[1719232507841,7.7846,128.46,128.42,7.7869]
[1719232508134,7.7847,128.46,128.4,19.4689]
[1719232508347,7.7852,128.45,128.4,27.2569]
[1719232508528,20.79737607,128.49,128.39,38.9429]
[1719232508529,7.7859,128.44,128.39,7.7883]
[1719232508923,7.7871,128.42,128.38,42.005]
[1719232509133,7.7866,128.43,128.38,27.2612]
[1719232509333,25.6943,128.46,128.37,7.7897]
[1719232509524,7.7879,128.41,128.37,7.7899]
[1719232509726,7.7879,128.41,128.36,7.7903]
[1719232509951,7.7879,128.41,128.37,7.7897]
[1719232510138,15.8326,128.43,128.38,7.7893]
[1719232510343,7.7869,128.42,128.38,7.7893]
[1719232510546,7.7869,128.42,128.37,27.2643]
[1719232511128,23.6191,128.43,128.38,7.7892]
[1719232511339,35.2989,128.43,128.35,19.4778]
[1719232511528,45.0,128.42,128.32,21.8791]
[1719232511841,15.8326,128.43,128.35,7.7905]
[1719232511842,7.7882,128.4,128.35,7.7905]
[1719232512042,6.493,128.39,128.28,38.9759]
[1719232512243,7.8348133,128.39,128.32,19.4818]
[1719232512450,7.7903,128.37,128.32,27.2746]
[1719232512643,7.7903,128.37,128.33,7.7923]
[1719232513036,15.6238133,128.39,128.34,7.7916]
[1719232513235,80.38546764,128.43,128.32,6.1623]
[1719232513236,7.7877,128.41,128.32,6.1623]
[1719232513648,15.8326,128.43,128.39,7.7885]
[1719232513848,7.787,128.42,128.37,19.4734]
[1719232514632,7.787,128.42,128.37,27.263]
[1719232515231,15.8326,128.43,128.35,27.2689]
[1719232515430,15.8326,128.43,128.33,7.792]
[1719232515431,7.7897,128.38,128.33,7.792]
[1719232515649,7.7897,128.38,128.33,7.7919]
[1719232515833,6.1532,128.4,128.36,7.7901]
[1719232516039,6.1532,128.4,128.35,27.2678]
[1719232516443,7.7896,128.38,128.33,7.7921]
[1719232517139,6.1532,128.4,128.33,7.7921]
[1719232517339,7.7909,128.36,128.32,19.4814]
[1719232518026,7.7909,128.36,128.32,27.2743]
[1719232518346,7.7909,128.36,128.32,19.4814]
[1719232519047,7.7929,128.33,128.29,19.4858]
[1719232519228,7.7929,128.33,128.28,7.7951]
[1719232519433,7.7934,128.32,128.27,27.2858]
[1719232519934,0.77960552,128.28,128.27,27.2858]
[1719232522358,0.77960552,128.28,128.27,72.2858]
[1719232523448,0.77960552,128.28,128.27,27.2858]
[1719232523756,0.77960552,128.28,128.27,19.49]
[1719232524536,0.77960552,128.28,128.27,27.286]
[1719232526338,0.77960552,128.28,128.27,72.286]
[1719232527339,0.77960552,128.28,128.27,27.286]
[1719232528749,0.77960552,128.28,128.27,72.286]
[1719232529642,0.77960552,128.28,128.27,27.286]
[1719232529970,0.77960552,128.28,128.27,72.286]
[1719232531244,0.77960552,128.28,128.27,27.286]
[1719232533868,14.4176,128.39,128.35,7.7911]
[1719232534079,6.6287,128.39,128.35,7.791]
[1719232534255,6.6287,128.39,128.34,19.4789]
[1719232534437,6.6287,128.39,128.36,7.7903]
[1719232534642,6.6287,128.39,128.31,58.4495]
[1719232534840,6.6287,128.39,128.34,7.7917]
[1719232535970,7.7907,128.36,128.32,7.7927]
[1719232536481,7.7907,128.36,128.31,7.7934]
[1719232536646,7.7907,128.36,128.32,7.7929]
[1719232537550,7.7902,128.37,128.32,7.7929]
[1719232537752,6.6287,128.39,128.31,7.7935]
[1719232537958,7.7917,128.35,128.3,27.2782]
[1719232538252,7.7906,128.36,128.31,7.7933]
[1719232538450,7.7913,128.35,128.31,7.7933]
[1719232538668,7.7918,128.34,128.3,19.4842]
[1719232538858,15.1189,128.35,128.24,22.7545]
[1719232539055,7.7937,128.31,128.25,19.4918]
[1719232539253,7.7937,128.31,128.26,7.7965]
[1719232539879,0.77966631,128.27,128.26,7.7965]
[1719232542167,0.43303531,128.27,128.26,7.7965]
[1719232543169,0.43303531,128.27,128.25,19.4918]
[1719232543357,0.43303531,128.27,128.24,7.7976]
[1719232545263,0.43303531,128.27,128.16,418.99]
[1719232545264,7.7975,128.25,128.2,7.7999]
[1719232545954,7.798,128.24,128.2,7.7999]
[1719232546148,7.7981,128.24,128.19,27.3016]
[1719232546475,25.6046,128.26,128.18,7.8013]
[1719232546648,7.7987,128.23,128.18,7.8011]
[1719232546848,7.7981,128.24,128.19,27.3024]
[1719232547054,7.7973,128.25,128.2,7.8001]
[1719232547267,7.7983,128.24,128.19,19.5021]
[1719232547471,7.7975,128.25,128.2,7.8001]
[1719232547654,7.798,128.24,128.2,7.8001]
[1719232548062,7.798,128.24,128.13,22.1493]
[1719232548063,16.1989,128.23,128.16,19.5055]
[1719232548258,16.1989,128.23,128.12,39.0244]
[1719232548259,45.0,128.22,128.12,39.0244]
[1719232548467,7.8013,128.19,128.15,7.8033]
[1719232548669,7.8011,128.19,128.15,7.8033]
[1719232548863,7.7998,128.21,128.15,19.5078]
[1719232549062,7.8006,128.2,128.15,19.5078]
[1719232549269,35.6951,128.23,128.12,8.1314693]
[1719232549481,7.801,128.19,128.14,27.3137]
[1719232549683,7.801,128.19,128.15,7.8033]
[1719232550065,7.8017,128.18,128.12,27.6443693]
[1719232550357,7.8022,128.17,128.12,35.4492693]
[1719232550563,7.8022,128.17,128.12,27.6443693]
[1719232551249,7.8017,128.18,128.13,7.8044]
[1719232551452,19.4996,128.21,128.14,7.8038]
[1719232551684,7.8011,128.19,128.14,7.8038]
[1719232552378,6.5638,128.22,128.14,19.5093]
[1719232552567,7.802,128.18,128.14,19.5093]
[1719232552774,7.802,128.18,128.14,27.3131]
[1719232553074,14.3632,128.22,128.17,7.8021]
[1719232553285,14.3632,128.22,128.17,27.3071]
[1719232553753,7.7998,128.21,128.17,27.3071]
[1719232553952,7.7998,128.21,128.17,19.505]
[1719232554178,7.7998,128.21,128.17,27.3069]
[1719232554777,6.5638,128.22,128.17,27.3069]
[1719232554958,7.8007,128.2,128.15,27.3111]
[1719232555859,7.8007,128.2,128.16,7.8026]
[1719232556179,7.7999,128.21,128.16,7.8026]
[1719232557060,7.7999,128.21,128.15,19.5082]
[1719232557261,7.8005,128.2,128.15,27.3113]
[1719232558980,7.8005,128.2,128.16,7.8025]
[1719232559462,7.8005,128.2,128.15,27.3112]
[1719232559670,7.8011,128.19,128.14,7.8035]
[1719232559977,0.43303531,128.15,128.14,7.8035]
[1719232560284,0.43303531,128.15,128.14,7.8039]
[1719232560860,0.43303531,128.15,128.13,19.5113]
[1719232561063,0.43303531,128.15,128.13,27.3153]
[1719232561678,8.23663531,128.15,128.12,8.12911026]
[1719232561871,0.43303531,128.15,128.12,8.12911026]
[1719232562382,0.43303531,128.15,128.13,7.8045]
[1719232562689,0.43303531,128.15,128.14,7.8039]
[1719232562893,0.43303531,128.15,128.13,27.3157]
[1719232563187,0.43303531,128.15,128.14,7.8039]
[1719232565681,8.23633531,128.15,128.12,8.12911026]
[1719232565882,8.23633531,128.15,128.11,7.8054]
[1719232565883,0.43303531,128.15,128.11,7.8054]
[1719232566069,0.43303531,128.15,128.1,35.3397]
[1719232566070,0.43303531,128.15,128.13,7.8041]
[1719232566389,0.43303531,128.15,128.14,19.5099]
[1719232566569,0.43303531,128.15,128.13,7.8043]
[1719232566759,0.43303531,128.15,128.12,8.10887658]
[1719232566963,0.43303531,128.15,128.14,7.8039]
[1719232567568,12.44183755,128.2,128.15,7.8028]
[1719232567788,52.4228,128.22,128.14,19.5084]
[1719232567987,7.8012,128.19,128.14,19.5084]
[1719232568159,7.8015,128.18,128.14,19.5084]
[1719232568472,7.8024,128.17,128.12,27.62157658]
[1719232568997,52.4215,128.22,128.14,19.5093]
[1719232569164,52.4215,128.22,128.12,8.10887658]
[1719232569165,12.65291476,128.22,128.13,39.022]
[1719232569496,7.8003,128.2,128.16,7.8026]
[1719232569661,7.8011,128.19,128.15,19.5083]
[1719232570065,7.8015,128.18,128.15,19.5083]
[1719232570293,7.8021,128.17,128.13,27.3158]
[1719232570597,7.8021,128.17,128.12,34.46887658]
[1719232570598,12.65291476,128.22,128.15,19.5083]
[1719232571390,16.1989,128.23,128.19,7.8005]
[1719232571592,7.7996,128.22,128.17,27.3072]
[1719232571967,7.7999,128.21,128.17,19.5053]
[1719232572276,16.1989,128.23,128.14,7.8034]
[1719232572478,7.8014,128.19,128.14,7.8035]
[1719232572883,7.8005,128.2,128.15,7.803]
[1719232573090,19.4991,128.22,128.15,7.803]
[1719232573091,7.8009,128.19,128.15,7.803]
[1719232573390,16.1989,128.23,128.16,19.5065]
[1719232573995,7.7999,128.21,128.16,27.3088]
[1719232574290,7.7993,128.22,128.18,7.8015]
[1719232574668,7.7993,128.22,128.17,7.8018]
[1719232575096,7.7993,128.22,128.18,7.8014]
[1719232575391,23.9975,128.23,128.18,27.3048]
[1719232575886,16.1989,128.23,128.17,7.8019]
[1719232576095,7.7993,128.22,128.17,7.8019]
[1719232577178,7.7998,128.21,128.16,27.3091]
[1719232577597,35.6951,128.23,128.15,7.803]
[1719232578173,7.8013,128.19,128.13,19.5099]
[1719232578674,19.4993,128.21,128.13,19.5099]
[1719232578875,7.8024,128.17,128.13,19.5099]
[1719232579181,7.8024,128.17,128.13,27.3143]
[1719232579372,7.8028,128.16,128.12,15.91377658]
[1719232579573,7.8022,128.17,128.13,7.8044]
[1719232579983,0.78045735,128.14,128.13,7.8044]
[1719232581176,0.78045735,128.14,128.12,35.42537658]
[1719232581378,0.78045735,128.14,128.12,8.10887658]
[1719232581782,0.78045735,128.14,128.13,7.8045]
[1719232582091,0.78045735,128.14,128.12,7.805]
[1719232582388,0.78045735,128.14,128.13,7.8045]
[1719232585189,5.735e-05,128.14,128.13,95.3916]
[1719232586782,5.735e-05,128.14,128.13,69.0316]
[1719232588377,1.80428989,128.22,128.21,27.2989]
[1719232589487,15.3802,128.27,128.24,7.7978]
[1719232589986,15.3802,128.27,128.18,39.0048]
[1719232589987,29.12650737,128.31,128.25,19.4931]
[1719232590188,29.12650737,128.31,128.27,27.2858]
[1719232590189,24.32216821,128.31,128.27,27.2858]
[1719232590395,7.7944,128.3,128.26,7.7964]
[1719232590590,32.11596821,128.31,128.26,7.7964]
[1719232590793,7.7952,128.29,128.22,26.36]
[1719232590986,7.7952,128.29,128.24,7.7974]
[1719232591683,7.7944,128.3,128.25,7.7971]
[1719232591891,7.7944,128.3,128.25,27.2901]
[1719232592605,7.7944,128.3,128.26,7.7965]
[1719232592789,32.11596821,128.31,128.26,7.7965]
[1719232593102,24.32216821,128.31,128.27,27.2857]
[1719232593312,24.32216821,128.31,128.29,7.7944]
[1719232593482,24.32216821,128.31,128.28,19.4871]
[1719232593882,24.32216821,128.31,128.28,27.2825]
[1719232594389,24.32216821,128.31,128.28,19.4871]
[1719232595202,24.32216821,128.31,128.28,27.2825]
[1719232595501,24.32216821,128.31,128.25,19.4917]
[1719232595502,32.11576821,128.31,128.25,19.4917]
[1719232595698,32.11576821,128.31,128.26,7.7962]
[1719232596005,24.32216821,128.31,128.22,27.2957]
[1719232596212,24.32216821,128.31,128.24,7.7974]
[1719232596500,7.795,128.29,128.25,7.7972]
[1719232596705,24.32216821,128.31,128.25,7.7968]
[1719232597005,9.14396821,128.3,128.26,7.7966]
[1719232597209,9.14396821,128.3,128.25,7.797]
[1719232597382,7.7949,128.29,128.25,7.797]
[1719232597709,1.34956821,128.3,128.26,27.2879]
[1719232597894,1.34956821,128.3,128.27,7.796]
[1719232598197,9.14406821,128.3,128.21,38.9969]
[1719232598404,1.34956821,128.3,128.23,19.4947]
[1719232599101,9.14396821,128.3,128.25,7.7971]
[1719232599420,1.34956821,128.3,128.2,22.5343]
[1719232599607,7.7962,128.27,128.22,19.4963]
[1719232599781,7.7967,128.26,128.22,19.4963]
[1719232600108,0.77990954,128.23,128.19,19.501]
[1719232600402,0.77990954,128.23,128.21,27.298]
[1719232601132,0.77990954,128.23,128.22,7.799]
[1719232603190,0.77990954,128.23,128.22,52.799]
[1719232606723,0.77990954,128.23,128.21,27.2979]
[1719232607019,0.77990954,128.23,128.19,7.8006]
[1719232607198,0.77990954,128.23,128.21,7.7993]
[1719232608000,0.77990954,128.23,128.2,19.5005]
[1719232608831,0.77990954,128.23,128.21,7.7992]
[1719232608988,0.77990954,128.23,128.22,7.799]
[1719232609188,0.77990954,128.23,128.21,7.7995]
[1719232609599,0.77990954,128.23,128.22,7.799]
[1719232609817,16.43220954,128.23,128.17,19.5042]
[1719232610019,7.7992,128.22,128.17,27.3062]
[1719232610196,16.43220954,128.23,128.16,7.8025]
[1719232610518,19.4977,128.22,128.14,27.312]
[1719232611217,7.8016,128.18,128.14,27.312]
[1719232611522,19.5015,128.2,128.11,27.3185]
[1719232611726,7.8033,128.16,128.11,27.3185]
[1719232613533,19.5039,128.18,128.1,7.8062]
[1719232613843,7.8043,128.14,128.08,27.3247]
[1719232614015,49.545,128.17,128.09,7.8067]
[1719232614220,1.40383427,128.16,128.09,7.8067]
[1719232614409,7.804,128.14,128.09,7.8067]
[1719232614609,1.40383427,128.16,128.11,7.8053]
[1719232614832,9.20693427,128.16,128.11,7.8053]
[1719232615133,1.40383427,128.16,128.11,7.8053]
[1719232615337,1.40383427,128.16,128.1,27.3219]
[1719232615511,1.40383427,128.16,128.11,7.8056]
[1719232615709,9.20673427,128.16,128.11,7.8056]
[1719232616536,1.40383427,128.16,128.12,7.8051]
[1719232616713,9.20663427,128.16,128.11,7.8055]
[1719232616916,7.8034,128.15,128.1,27.3218]
[1719232617123,9.20683427,128.16,128.11,7.8054]
[1719232617302,7.8039,128.14,128.1,27.322]
[1719232617518,7.8036,128.15,128.1,27.322]
[1719232617714,7.8041,128.14,128.1,19.5156]
[1719232618233,7.8046,128.13,128.09,7.8067]
[1719232618416,7.8053,128.12,128.08,27.3264]
[1719232618623,7.8048,128.13,128.08,27.3264]
[1719232618822,7.8042,128.14,128.09,7.8067]
[1719232619136,7.8042,128.14,128.1,7.8063]
[1719232619332,7.8042,128.14,128.08,19.5189]
[1719232619545,7.8042,128.14,128.09,7.8068]
[1719232619838,0.77990954,128.1,128.09,7.8068]
[1719232620331,0.77990954,128.1,128.08,27.3263]
[1719232620839,0.77990954,128.1,128.06,27.3307]
[1719232621009,0.77990954,128.1,128.07,7.8081]
[1719232621442,0.77990954,128.1,128.05,7.809]
[1719232621647,0.77990954,128.1,128.06,7.8085]
[1719232622346,0.77990954,128.1,128.06,7.8083]
[1719232622837,0.77990954,128.1,128.07,19.519]
[1719232623140,0.77990954,128.1,128.08,7.8072]
[1719232623711,0.77990954,128.1,128.09,27.3245]
[1719232624241,0.77990954,128.1,128.07,7.8078]
[1719232624413,0.77990954,128.1,128.03,100.0]
[1719232624414,0.77990954,128.1,128.03,19.5251]
[1719232624611,0.77990954,128.1,128.04,7.8098]
[1719232624828,7.8072,128.09,128.05,7.8094]
[1719232625117,7.8072,128.09,128.04,7.8098]
[1719232626016,7.8072,128.09,128.05,7.8092]
[1719232626351,7.8072,128.09,128.05,7.8094]
[1719232626534,8.58650954,128.1,128.05,7.8094]
[1719232626735,7.807,128.09,128.05,7.8094]
[1719232626924,0.77990954,128.1,128.04,19.5237]
[1719232627242,7.8079,128.08,128.04,19.5237]
[1719232627420,7.8071,128.09,128.04,19.5237]
[1719232628126,8.58630954,128.1,128.06,7.8084]
[1719232628325,0.77990954,128.1,128.06,7.8084]
[1719232628825,0.77990954,128.1,128.07,7.8081]
[1719232629231,7.8076,128.08,128.05,19.5222]
[1719232629427,7.8072,128.09,128.04,7.81]
[1719232629630,7.8077,128.08,128.04,7.81]
[1719232630025,7.8082,128.07,128.03,27.3368]
[1719232630231,7.8078,128.08,128.03,27.3367]
[1719232630453,0.77990954,128.1,128.03,19.5265]
[1719232630742,0.77990954,128.1,128.06,7.8085]
[1719232631322,8.58650954,128.1,128.05,27.3314]
[1719232631524,8.58650954,128.1,128.06,7.8087]
[1719232631724,8.58650954,128.1,128.05,27.3313]
[1719232632645,7.8072,128.09,128.05,19.5222]
[1719232633449,7.8076,128.08,128.04,7.8099]
[1719232633751,7.8071,128.09,128.05,7.8093]
[1719232633949,0.77990954,128.1,128.02,39.0549]
[1719232634149,0.77990954,128.1,128.04,15.659]
[1719232634457,0.77990954,128.1,128.09,7.807]
[1719232634822,0.77990954,128.1,128.08,27.3251]
[1719232635042,0.77990954,128.1,128.08,27.325]
[1719232635238,0.77990954,128.1,128.06,27.3304]
[1719232636752,0.77990954,128.1,128.06,19.522]
[1719232636959,0.77990954,128.1,128.08,7.8071]
[1719232638550,0.77990954,128.1,128.07,27.327]
[1719232638850,8.58630954,128.1,128.06,7.8086]
[1719232639348,7.8072,128.09,128.05,27.3324]
[1719232639539,0.77990954,128.1,128.01,26.36]
[1719232639864,6.4423,128.13,128.05,7.8094]
[1719232639865,7.8073,128.09,128.05,7.8094]
[1719232640031,6.4423,128.13,128.0,42.0602]
[1719232640032,7.8065,128.1,128.06,7.8088]
[1719232640353,7.806,128.11,128.06,7.8088]
[1719232640668,7.8073,128.09,128.05,19.5222]
[1719232641550,7.8073,128.09,128.05,27.3315]
[1719232641752,7.8066,128.1,128.06,7.8087]
[1719232643750,19.5148,128.11,128.02,19.5271]
[1719232643958,7.8082,128.07,128.03,7.8103]
[1719232644534,7.8079,128.08,128.03,7.8103]
[1719232644732,7.8084,128.07,128.03,7.8103]
[1719232645850,7.8079,128.08,128.04,7.81]
[1719232646952,7.8083,128.07,128.02,19.5271]
[1719232647253,7.8089,128.06,128.02,19.5271]
[1719232647457,7.8089,128.06,128.02,27.338]
[1719232647633,7.8095,128.05,128.0,19.531]
[1719232647834,7.8103,128.04,128.0,19.531]
[1719232648255,6.2241,128.07,128.0,19.531]
[1719232648436,7.808,128.08,128.03,7.8104]
[1719232648643,7.8079,128.08,128.03,7.8103]
[1719232648853,7.8073,128.09,128.04,7.8098]
[1719232649366,7.8077,128.08,128.04,7.8098]
[1719232649655,23.3075,128.1,128.05,7.8093]
[1719232649866,23.3075,128.1,128.06,7.8088]
[1719232650072,23.3075,128.1,128.05,7.8091]
[1719232650285,23.3076,128.1,128.05,7.8091]
[1719232650650,7.807,128.09,128.05,7.8091]
[1719232651164,7.8078,128.08,128.04,27.3337]
[1719232651367,7.8071,128.09,128.05,7.8093]
[1719232651854,15.5009,128.1,128.05,7.8093]
[1719232652969,7.8071,128.09,128.05,7.8093]
[1719232653169,23.3075,128.1,128.05,7.8093]
[1719232653705,15.4279,128.13,128.09,7.8066]
[1719232654250,23.2325,128.13,128.09,7.8066]
[1719232654561,23.2325,128.13,128.05,19.5222]
[1719232654562,7.8058,128.11,128.05,19.5222]
[1719232654751,7.8058,128.11,128.06,7.8082]
[1719232655075,7.8065,128.1,128.06,7.8082]
[1719232655576,7.8071,128.09,128.05,27.3313]
[1719232655776,1.40383427,128.12,128.05,19.5222]
[1719232655777,7.8076,128.08,128.05,19.5222]
[1719232656078,7.8076,128.08,127.98,139.0677]
[1719232656079,7.8092,128.06,128.01,27.3398]
[1719232656249,7.8092,128.06,128.01,19.5283]
[1719232656571,7.809,128.06,128.02,7.8109]
[1719232659172,23.6605,128.05,128.01,27.34]
[1719232659375,23.6605,128.05,128.01,19.5283]
[1719232659873,0.78118897,128.02,128.01,27.3401]
[1719232660256,0.78118897,128.02,128.0,7.8123]
[1719232660677,0.78118897,128.02,128.0,27.3435]
[1719232661207,0.78118897,128.02,128.01,7.8118]
[1719232662073,0.78118897,128.02,128.01,52.8118]
[1719232662369,0.78118897,128.02,128.01,7.8118]
[1719232662863,0.78118897,128.02,128.0,19.5312]
[1719232663067,0.78118897,128.02,127.99,7.813]
[1719232663574,0.78118897,128.02,128.0,7.8124]
[1719232664983,0.78118897,128.02,128.01,7.8118]
[1719232665387,0.78118897,128.02,128.0,27.3419]
[1719232665873,0.78118897,128.02,128.01,7.8118]
[1719232667581,0.78118897,128.02,128.0,27.3419]
[1719232668774,0.78118897,128.02,128.01,7.8118]
[1719232669074,0.78118897,128.02,128.0,27.3419]
[1719232669578,0.78118897,128.02,128.0,19.5297]
[1719232669757,8.59258897,128.02,127.98,27.3476]
[1719232671784,0.78118897,128.02,127.98,19.5341]
[1719232671974,0.78118897,128.02,128.01,7.8118]
[1719232672487,0.78118897,128.02,128.0,27.3427]
[1719232672686,0.78118897,128.02,128.01,7.8118]
[1719232679179,0.78118897,128.02,128.0,19.5305]
[1719232679379,0.78118897,128.02,127.99,7.8127]
[1719232679692,0.78118897,128.02,127.98,27.3478]
[1719232679896,0.78118897,128.0,127.98,27.3478]
[1719232680294,0.78118897,128.0,127.99,7.8131]
[1719232680467,0.78118897,128.0,127.98,19.5342]
[1719232680792,7.8139,127.98,127.95,0.4190786]
[1719232681370,0.78118897,128.0,127.95,0.4190786]
[1719232681371,7.8143,127.97,127.95,0.4190786]
[1719232681575,7.8139,127.98,127.95,0.4190786]
[1719232681994,7.8133,127.99,127.95,0.4190786]
[1719232682373,7.8138,127.98,127.95,0.4190786]
[1719232684398,7.8143,127.97,127.95,0.4190786]
[1719232686090,29.427,127.96,127.95,0.4190786]
[1719232686292,7.8163,127.94,127.89,7.8189]
[1719232686617,21.6121,127.96,127.88,27.3676]
[1719232686618,7.817,127.93,127.88,27.3676]
[1719232686902,21.6121,127.96,127.9,19.5463]
[1719232687101,0.78118897,128.0,127.85,61.4144]
[1719232687102,21.6121,127.99,127.96,7.8146]
[1719232687282,21.6121,127.99,127.88,139.0983]
[1719232687283,0.78118897,128.0,127.95,7.8152]
[1719232687592,8.59388897,128.0,127.95,7.8151]
[1719232687804,0.78118897,128.0,127.92,7.8172]
[1719232688099,19.535,127.98,127.91,7.8176]
[1719232688290,6.0349,127.97,127.92,7.8171]
[1719232688478,13.8494,127.97,127.93,7.8167]
[1719232688795,7.12068897,128.0,127.88,160.8353]
[1719232689096,7.12068897,128.0,127.92,19.5425]
[1719232689399,7.8142,127.98,127.93,7.8166]
[1719232689594,7.8138,127.98,127.92,19.5425]
[1719232689900,7.8138,127.98,127.93,7.8162]
[1719232690197,14.93328897,128.0,127.91,139.0885]
[1719232690503,0.78118897,128.0,127.94,60.6171]
[1719232690683,0.78118897,128.0,127.97,27.3496]
[1719232690878,0.78118897,128.0,127.94,60.6171]
[1719232690879,0.78118897,128.0,127.94,41.0781]
[1719232691226,0.78118897,128.0,127.94,27.3552]
[1719232691396,7.814,127.98,127.94,19.5393]
[1719232691595,20.31258897,128.0,127.91,41.0023]
[1719232691790,20.31258897,128.0,127.88,139.0973]
[1719232691791,0.78118897,128.0,127.88,60.5559]
[1719232692097,7.8155,127.95,127.91,19.5449]
[1719232692289,7.8151,127.96,127.91,27.3624]
[1719232692878,7.8155,127.95,127.91,27.3624]
[1719232693074,6.5998,127.97,127.91,19.5449]
[1719232693379,14.4143,127.97,127.92,7.8171]
[1719232693800,14.4145,127.97,127.92,7.8171]
[1719232693985,6.93178897,128.0,127.91,39.0891]
[1719232694191,6.93178897,128.0,127.92,45.0]
[1719232694392,0.78118897,128.0,127.92,45.0]
[1719232694601,0.78118897,128.0,127.97,7.8138]
[1719232695283,0.78118897,128.0,127.96,19.5358]
[1719232695483,0.78118897,128.0,127.96,27.3504]
[1719232695683,0.78118897,128.0,127.94,7.8157]
[1719232695684,7.8134,127.99,127.94,7.8157]
[1719232695989,7.8134,127.99,127.95,7.8154]
[1719232696191,8.59388897,128.0,127.94,19.5389]
[1719232696396,8.59388897,128.0,127.96,7.8148]
[1719232696594,7.8131,127.99,127.94,19.5389]
[1719232696800,0.78118897,128.0,127.95,7.815]
[1719232697201,7.8134,127.99,127.94,27.3548]
[1719232697509,7.8134,127.99,127.95,7.8155]
[1719232698511,0.78118897,128.0,127.94,19.5389]
[1719232698726,45.78118897,128.0,127.94,27.3549]
[1719232699015,7.8133,127.99,127.94,19.5389]
[1719232699188,7.8133,127.99,127.95,7.8155]
[1719232699386,7.8133,127.99,127.94,27.3547]